Cogmind - Beta 14 @@@ ROGUE MODE // 2024.12.22 @ 12:17:26 Player: Soraya Result: Self-destructed Performance ------------- Evolutions (2) 1000 Regions Visited (3) 600 Robots Destroyed (41) 205 Value Destroyed (1350) 1350 Prototype IDs (5) 100 Alien Tech Used (0) 0 Bonus (0) 0 TOTAL SCORE: 3255 Bonus ------- None Cogmind --------- Core Integrity 389/550 Matter 11/300 Energy 250/280 System Corruption 6% Temperature Cool (30) Movement Core (400) Ox7 Location -8/Materials Parts ------- > --- POWER (1) -------- Cooled Ion Engine > --- PROPULSION (4) --- (None) > --- UTILITY (3) ------ Medium Storage Unit > --- WEAPON (3) ------- Gauss Rifle > --- INVENTORY (10) --- Cooled Ion Engine Cooled Ion Engine Small Storage Unit Transport Network Coupler Peak State ------------ > --- POWER ------------ Cooled Ion Engine > --- PROPULSION ------- Aluminum Leg Aluminum Leg Aluminum Leg Aluminum Leg > --- UTILITY ---------- Small Storage Unit ECM Suite Core Shielding > --- WEAPON ----------- Small Laser Particle Gun Grenade Launcher > --- INVENTORY -------- Cooled Ion Engine Cooled Ion Engine Cooled Ion Engine Medium Storage Unit Transport Network Coupler Light Cannon [Rating: 15] Favorites ----------- Power Light Nuclear Core Engine Cooled Ion Engine Power Core Light Nuclear Core Propulsion Aluminum Leg Leg Aluminum Leg Utility Small Storage Unit Device ECM Suite Storage Small Storage Unit Processor Targeting Computer Protection Core Shielding Weapon Small Laser Energy Gun Small Laser Ballistic Gun Light Assault Rifle Ballistic Cannon Light Cannon Launcher Grenade Launcher Build | -11 -10 -9 -8 ------- Run | Yrd Mat Mat Mat Slots Evolved 4 | . . 2 2 Power . | . . . . Propulsion 2 | . . . 2 Utility 1 | . . 1 . Weapon 1 | . . 1 . Parts Attached 51 | 6 24 14 7 Power 7 | 1 4 1 1 Engine 5 | 1 2 1 1 Core 2 | . 2 . . Reactor . | . . . . Propulsion 16 | 2 6 6 2 Treads . | . . . . Leg 16 | 2 6 6 2 Wheel . | . . . . Hover . | . . . . Flight . | . . . . Utility 7 | 1 4 1 1 Device 2 | . 1 1 . Storage 2 | 1 . . 1 Processor 2 | . 2 . . Hackware . | . . . . Protection 1 | . 1 . . Artifact . | . . . . Weapon 21 | 2 10 6 3 Energy Gun 9 | 1 6 1 1 Energy Cannon . | . . . . Ballistic Gun 5 | 1 2 1 1 Ballistic Cannon 2 | . . 1 1 Launcher 5 | . 2 3 . Special Weapon . | . . . . Impact Weapon . | . . . . Slashing Weapon . | . . . . Piercing Weapon . | . . . . Special Melee Weapon . | . . . . Unidentified Prototypes . | . . . . Corrupted Parts 1 | . . . 1 System Corruption 6 | . . . 6 Parts Lost 16 | . 5 . 11 Power 1 | . . . 1 Propulsion 6 | . 2 . 4 Utility 3 | . 1 . 2 Weapon 6 | . 2 . 4 Highest Loss Streak 11 | . 3 . 11 To Critical Strikes . | . . . . Average Slot Usage (%) 95 | . 95 98 87 Engine 7 | . 6 8 9 Core 5 | . 7 2 . Leg 24 | . 26 21 31 Device 7 | . 5 11 7 Storage 12 | . 14 11 9 Processor 1 | . 1 . . Protection 6 | . 3 11 8 Energy Gun 18 | . 18 21 9 Ballistic Gun 5 | . 8 2 1 Launcher 3 | . . 6 7 Peak Build Rating 15 | 6 10 13 15 Average Rating 9 | 4 7 12 13 On Entrance 7 | . 6 10 13 Naked Turns . | . . . . Heaviest Build 30 | 13 16 23 30 Greatest Support 40 | 20 20 20 40 Greatest Overweight (x) 6 | 1 4 6 . Average Overweight (x) . | . . . . Largest Inventory Capacity 10 | 8 8 8 10 Average Capacity 8 | 7 8 8 9 Most Carried 8 | 4 8 8 7 Average Carried 6 | 1 6 6 5 Final Capacity 10 | 8 8 8 10 Final Carried 8 | 2 8 8 4 Class Distribution -------------------- 35% | Scavenger-Tank 34% | Mutant 29% | Scavenger-Mutant Dominant Class ---------------- Mutant | -10/Materials Scavenger-Tank | -9/Materials Scavenger-Tank | -8/Materials Resources | -11 -10 -9 -8 ----------- Run | Yrd Mat Mat Mat Matter Collected 682 | 213 285 162 22 Remotely . | . . . . Salvage Created 1277 | . 526 552 199 Parts 82 | . 30 39 13 Haulers Intercepted 2 | . . 1 1 Recyclers Shooed 1 | . . 1 . Parts Field Recycled . | . . . . Retrieved Matter . | . . . . Parts Self-Destructed . | . . . . Prevented . | . . . . Kills | -11 -10 -9 -8 ------- Run | Yrd Mat Mat Mat Combat Hostiles Destroyed 31 | . 11 15 5 Guns 17 | . 10 6 1 Cannons 1 | . . 1 . AOE 13 | . 1 8 4 Classes Destroyed 8 | . 3 2 3 Worker 1 | . . . 1 Builder 1 | . . . 1 Tunneler 2 | . 1 1 . Hauler 2 | . . 1 1 Watcher 4 | . 2 2 . Grunt 29 | . 11 14 4 Sentry 1 | . . 1 . Hunter 1 | . . . 1 Best Kill Streak 7 | . 3 6 7 Combat Bots Only 6 | . 3 6 4 Max Kills in Single Turn 3 | . 1 2 3 Gunslinging . | . . . . Exploded 2 | . 1 1 2 Melee . | . . . . Uniques/NPCs Destroyed . | . . . . Combat | -11 -10 -9 -8 -------- Run | Yrd Mat Mat Mat Hostile Shots Fired 211 | . 92 35 84 Missed 59 | . 24 9 26 Damage Taken 2180 | . 854 398 928 Core 424 | . 177 86 161 Absorbed by Shields . | . . . . Redirected to Shielding 52 | . 4 19 29 Core Remaining (%) 69 | 100 29 78 . Volleys Fired 129 | . 73 31 25 Largest 3 | . 2 3 2 Hottest 140 | . 80 140 100 Shots Fired 229 | . 131 65 33 Gun 195 | . 129 50 16 Cannon 14 | . . 6 8 Launcher 20 | . 2 9 9 Special . | . . . . Kinetic 75 | . 49 10 16 Thermal 134 | . 80 46 8 Explosive 20 | . 2 9 9 Electromagnetic . | . . . . Robot Hit Streak 12 | . 12 8 8 Robot Miss Streak 5 | . 5 3 3 Penetration Max 1 | . . . 1 Secondary Targets 1 | . . 1 . Max Gunslinging Chain 1 | . . 1 . Shots Hit Robots 147 | . 93 37 17 Core Hits 89 | . 31 38 20 Critical Kills 1 | . . . 1 Critical Parts Destroyed 1 | . 1 . . Critical Strikes 7 | . 5 1 1 Burn 5 | . 4 1 . Destroy 2 | . 1 . 1 Melee Attacks . | . . . . Impact . | . . . . Slashing . | . . . . Piercing . | . . . . Sneak Attacks . | . . . . Combat Hostiles . | . . . . Follow-up Attacks . | . . . . Damage Inflicted 3076 | . 1030 1199 847 Guns 1632 | . 958 451 223 Cannons 134 | . . 64 70 Explosions 1310 | . 72 684 554 Melee . | . . . . Ramming . | . . . . Kinetic 553 | . 284 81 188 Thermal 1213 | . 674 434 105 Explosive 1292 | . 72 684 536 Electromagnetic 18 | . . . 18 Impact . | . . . . Slashing . | . . . . Piercing . | . . . . Highest Corruption 6 | . 2 . 6 Average Corruption 2 | . 2 . 6 Corruption Purged . | . . . . Corruption Blocked . | . . . . Effects 2 | . 1 . 1 Message Errors 1 | . . . 1 Energy Discharges 1 | . 1 . . Overload Shots . | . . . . Overflow Damage 11 | . . 8 3 Projectiles . | . . . . Explosions 11 | . . 8 3 Melee . | . . . . Knockbacks . | . . . . Impact . | . . . . Kinetic . | . . . . Secondary . | . . . . Self-Inflicted Damage 12 | . . 12 . Shots 1 | . . 1 . Rammed . | . . . . Targets Rammed . | . . . . Kicked . | . . . . Crushed . | . . . . Highest Temperature 308 | . 204 308 174 Average Temperature 78 | . 74 89 65 Received Heat Transfer 1101 | . 498 171 432 Siege Activations . | . . . . Robots Corrupted . | . . . . Combat Hostiles . | . . . . Parts Fried . | . . . . Impact Corruptions . | . . . . Robots Melted . | . . . . Combat Hostiles . | . . . . Parts Melted 2 | . . 2 . Heat Transferred 3371 | . 2010 1102 259 Parts Sabotaged . | . . . . Parts Stolen . | . . . . Parts Stripped . | . . . . Power Chain Reactions . | . . . . Alert | -11 -10 -9 -8 ------- Run | Yrd Mat Mat Mat Peak Influence 375 | . 223 375 293 Initial 121 | . . 29 121 Average 119 | . 62 213 159 Maximum Alert Level 1 | . 1 1 1 Low Security (%) 77 | 100 94 47 73 Level 1 22 | . 5 52 26 Level 2 . | . . . . Level 3 . | . . . . Level 4 . | . . . . Level 5 . | . . . . High Security . | . . . . Max Security . | . . . . Squads Dispatched 6 | . 1 2 3 Investigation 4 | . 1 2 1 Extermination . | . . . . Reinforcement 1 | . . . 1 Assault . | . . . . Garrison 1 | . . . 1 Intercept . | . . . . Searches Triggered . | . . . . Construction Impeded 1 | . . . 1 Haulers Reinforced . | . . . . Active Scanning Responses . | . . . . Cargo Convoy Interrupts . | . . . . Stealth | -11 -10 -9 -8 --------- Run | Yrd Mat Mat Mat Distress Signals 6 | . 3 3 . Communications Jammed . | . . . . Distress Signals . | . . . . Times Spotted 52 | . 21 20 11 Peak Tracking Total 8 | . 4 8 5 Tactical Retreats 7 | . 1 3 3 Traps | -11 -10 -9 -8 ------- Run | Yrd Mat Mat Mat Traps Triggered 10 | . 5 4 1 Indirectly 1 | . . . 1 Trap Hack Attempts . | . . . . Triggered . | . . . . Disarmed . | . . . . Reprogrammed . | . . . . Reused . | . . . . Traps Extracted . | . . . . Installed . | . . . . Triggered . | . . . . Machines | -11 -10 -9 -8 ---------- Run | Yrd Mat Mat Mat Machines Disabled 4 | . 1 . 3 Max in Single Turn 2 | . 1 . 2 Machines Repaired . | . . . . Machines Dismantled . | . . . . Machines Sabotaged . | . . . . Overloaded Fab Kills . | . . . . Hacking | -11 -10 -9 -8 --------- Run | Yrd Mat Mat Mat Machines Accessed 7 | . 4 3 . Terminals 6 | . 4 2 . Fabricators . | . . . . Repair Stations . | . . . . Recycling Units 1 | . . 1 . Scanalyzers . | . . . . Garrison Access . | . . . . Total Hacks 26 | . 17 9 . Successful 15 | . 11 4 . Failed 11 | . 6 5 . Catastrophic . | . . . . Database Lockouts . | . . . . Manual 1 | . 1 . . Terminals 23 | . 17 6 . Fabricators . | . . . . Repair Stations . | . . . . Recycling Units 3 | . . 3 . Scanalyzers . | . . . . Garrison Access . | . . . . Terminal Hacks 13 | . 11 2 . Record 1 | . 1 . . Prototype ID Bank 4 | . 2 2 . Branch Access Points 1 | . 1 . . Alert Level 1 | . 1 . . Dispatch Records 1 | . 1 . . Maintenance Status 1 | . 1 . . Hauler Manifests 1 | . 1 . . Zone Layout 3 | . 3 . . Fabricator Hacks . | . . . . Repair Station Hacks . | . . . . Recycling Unit Hacks 2 | . . 2 . Process 1 | . . 1 . Report Inventory 1 | . . 1 . Scanalyzer . | . . . . Garrison Access Hacks . | . . . . Unauthorized Hacks . | . . . . Terminals . | . . . . Fabricators . | . . . . Repair Stations . | . . . . Recycling Units . | . . . . Scanalyzers . | . . . . Garrison Access . | . . . . Data Cores Recovered . | . . . . Used . | . . . . Hacking Detections 7 | . 5 2 . Full Trace Events 1 | . . 1 . Feedback Events . | . . . . Feedback Blocked . | . . . . Robot Schematics Acquired . | . . . . Robots Built . | . . . . Authchips . | . . . . Time . | . . . . Total Robot Build Rating . | . . . . Part Schematics Acquired . | . . . . Parts Built . | . . . . Authchips . | . . . . Time . | . . . . Total Part Build Rating . | . . . . Parts Repaired . | . . . . Time . | . . . . Parts Recycled . | . . . . Recycled Matter 90 | . . 90 . Retrieved Matter . | . . . . Retrieved Components . | . . . . Parts Scanalyzed . | . . . . Part Schematics Acquired . | . . . . Parts Damaged . | . . . . Bothacking | -11 -10 -9 -8 ------------ Run | Yrd Mat Mat Mat Used RIF Installer . | . . . . Robots Hacked . | . . . . Non-combat . | . . . . Combat . | . . . . Robot Hacks Applied . | . . . . Relay Couplers Released . | . . . . Fabnet Peak Effective % . | . . . . Robots Rewired . | . . . . Allies Hacked . | . . . . Hacks Repelled . | . . . . Allies | -11 -10 -9 -8 -------- Run | Yrd Mat Mat Mat Total Allies . | . . . . Largest Group . | . . . . Highest-Rated Group . | . . . . Highest-Rated Ally . | . . . . Total Orders . | . . . . Ally Attacks . | . . . . Total Damage . | . . . . Kills . | . . . . Allies Corrupted . | . . . . Allies Melted . | . . . . Intel | -11 -10 -9 -8 ------- Run | Yrd Mat Mat Mat Robot Analysis Total . | . . . . Derelict Logs Recovered . | . . . . Drone Launches . | . . . . Drone Recoveries . | . . . . Exploration | -11 -10 -9 -8 ------------- Run | Yrd Mat Mat Mat Turns Passed 2099 | 68 1147 712 172 Spaces Moved 1152 | 45 676 344 87 Core 13 | 10 2 1 . Treads . | . . . . Legs 1139 | 35 674 343 87 Wheels . | . . . . Hover . | . . . . Flight . | . . . . Fastest Speed 50 | 50 120 120 120 Average Speed 135 | 112 126 161 120 Slowest Speed 350 | 120 250 350 120 Overloaded Moves . | . . . . Propulsion Burnouts . | . . . . Robots Hopped . | . . . . Cave-ins Triggered . | . . . . Exploration Rate (%) 34 | 3 89 34 11 Regions Visited 3 Branch Regions . Pre-discovered Areas . | . . . . Known Exits Taken . | . . . . Unknown Exits Taken 3 | 1 1 1 . Scrap Searched . | . . . . Spaces Dug . | . . . . Terrain Destroyed 97 | . 10 56 31 Melee . | . . . . Projectile . | . . . . AOE 97 | . 10 56 31 Terrain Rammed . | . . . . Walls Destroyed . | . . . . Machines Disabled . | . . . . Actions | -11 -10 -9 -8 --------- Run | Yrd Mat Mat Mat Total 1474 | 62 847 445 120 Wait 90 | 4 44 42 . Move 1149 | 44 675 343 87 Hop . | . . . . Pick Up 39 | 8 21 9 1 Fast Attach 9 | . 5 4 . Attach 24 | 6 8 5 5 Detach . | . . . . Swap 18 | . 11 5 2 Drop 16 | . 10 6 . Fire 129 | . 73 31 25 Melee . | . . . . Ram . | . . . . Kick . | . . . . Crush . | . . . . Escape Stasis . | . . . . Rewire . | . . . . Trap . | . . . . Miscellaneous . | . . . . Route ------- -11/Scrapyard -10/Materials (discovered 5 exits: *Mat x3 / *Min x2) -9/Materials (discovered 2 exits: [*Mat] / [*Min]) -8/Materials History --------- Turn | Location | Event 13 | -11/Scrapyard | Discovered new exit (range 15) 69 | -11/Scrapyard | Entered Materials 217 | -10/Materials | Discovered new exit (range 15) 246 | -10/Materials | Discovered new exit (range 16) 314 | -10/Materials | Build established: Mutant 598 | -10/Materials | Discovered new exit (range 10) 694 | -10/Materials | Core integrity fell below 50% 775 | -10/Materials | Lost 3 parts (2n1w) 910 | -10/Materials | Discovered new exit (range 12) 910 | -10/Materials | Discovered new exit (range 17) 1027 | -10/Materials | Build established: Scavenger-Mutant 1131 | -10/Materials | Identified exit to Mines 1216 | -10/Materials | Entered another Materials area 1216 | -9/Materials | Evolved 2 slots: Utility x1, Weapon x1 1508 | -9/Materials | Discovered new exit (range 9) 1877 | -9/Materials | Build established: Scavenger-Tank 1911 | -9/Materials | Discovered new exit (range 9) 1928 | -9/Materials | Entered another Materials area 1928 | -8/Materials | Evolved 2 slots: Propulsion x2 2064 | -8/Materials | Garrison activated, responded to threat 2100 | -8/Materials | Self-destructed Last Messages --------------- Aluminum Leg destroyed. Critical hit (Burn: +37). Slug penetrates G-47 Trooper. U-05 Engineer builds a Wall. Sml. Laser destroyed. Slug penetrates G-47 Trooper. Core Shielding destroyed. Penetrated by Slug. Slug penetrates Wall. U-05 Engineer lays Concrete. Slug penetrates G-47 Trooper. G-47 Trooper suffers critical hit (Destroy). G-47 Trooper destroyed. Slug penetrates Wall. U-05 Engineer builds a Door. Critical hit (Burn: +37). Aluminum Leg destroyed. Critical hit (Burn: +37). BR9M%LW|/FSHP&V&Q#ZFPAJJI K-01 Serf collects debris. Map ----- +----------------------------------------------------+ | ????????????????????????????????????? #?????????? | | ????????????????????????????????????? ??????????? | | ????????????????????????????????????? ??????????? | | ????????????????????????????????????? ??????????? | | ?????????????????????????????????####/#??????????? | | ?????????????????????????????????# % ??????????? | | ?????????????????????????????????# #??????????? | | ?????????????????????????????????# #??????????? | | ?????????????????????????????????# #??????????? | | ?????????????????????????????????# % #??????????? | | ?????????????????????????????????# #??????????? | | ?????????????????????????????????# #??????????? | | ?????????????????????????????????# #??????????? | | ?????????????????????????????????# % #??????????? | | ?????????????????????????????????# #??????????? | | ?????????????????????????????##### ##"##?????????? | | ?????????????????????????????# #?????????? | | ??????????????????????######## #?????????? | | ??????????????????????# # #?????###?? | | ??????????????????????# # ##??? #?? | | ??????????????????????#! # ### #?? | | ??????????????????????# # ??? | | ??????????????????????# # !%= ???? | | ??????????????????????# # [ ?????? | | ????????????#+######+##g +# #### ######## | | ?????????? u % g @ = %u | | ?????????? g=%h !! | | ?????????? k ! ! | | ???????????############ ==# # # ##+######## | | ??????????????????????# # ## #??? | | ??????????????????????## # """"" ## """ #??? | | ???????????????????????# + """"" ## """ !#??? | | ?????????????????????? # """"" ## """ #??? | | ????????????????????? # ## #??? | | ???????????????????? # """"" ## """ #??? | | ???????????????????#/####### """"" ## """ #??? | | ??????????????????? ??????# ""??" ## """ #??? | | ?????????????????? ???????# ???? ## #??? | | ?????????????????# ?????????###????############??? | | ?????????????????????????????????????????????????? | | ?????????????????????????????????????????????????? | | ?????????????????????????????????????????????????? | | ?????????????????????????????????????????????????? | | ?????????????????????????????????????????????????? | | ?????????????????????????????????????????????????? | | ?????????????????????????????????????????????????? | | ?????????????????????????????????????????????????? | | ?????????????????????????????????????????????????? | | ?????????????????????????????????????????????????? | | ?????????????????????????????????????????????????? | +----------------------------------------------------+ Best States ------------- Heat Dissipation 31 Energy Generation 14 Energy Capacity 280 Matter Stores 300 Matter Capacity 300 Sight Range 18 Terrain Scan Density 10 ECM Strength 1 Core Shielding 20 Evasion (%) 55 Targeting Accuracy 5 Item Schematics ----------------- None Robot Schematics ------------------ None Fabricated ------------ Nothing Alien Tech Used ----------------- None Achievements -------------- None Challenges ------------ None Game ------ Seed MomentumGodBiocell Manual? 0 Play Time 00:45:44 Cumulative 28.0 hours Start 2024.12.22 @ 11:29:41 End 2024.12.22 @ 12:17:26 Sessions 4 Manual Loads 0 Difficulty Rogue Special Mode None Game No. 24 Rogue 21 Adventurer 1 Explorer 2 Win Type - Total 0 Types 0/0/0/0/0/0/0/0/0 Lore% 12 Gallery% 19 Achievement% 16 Wizard Run 0 Options --------- Layout 0 ASCII 0 Keyboard 0 Movement Mouse Keybinds 0 Fullscreen 1 Font 20/Terminus Map View 66x50 Zoom Use 0% Tactical HUD 0 Map Filters NONE Filters NONE Steam 1 RUN: da60b59a-8a23-4682-a2b5-1538e20759e6